[Event "4NCL 2021-22"]
[Site "England"]
[Date "2022.02.12"]
[Round "3.34"]
[White "Dunn, Andrew"]
[Black "Han, Yichen"]
[Result "1/2-1/2"]
[ECO "D30"]
[WhiteElo "2153"]
[BlackElo "2347"]
[Annotator "ChessBase"]
[PlyCount "97"]
[EventDate "2021.11.27"]
[EventType "team-tourn"]
[EventCountry "ENG"]
[SourceTitle "playchess.com"]
[Source "ChessBase"]
[SourceQuality "1"]
[TimeControl "40/6000+30:3000+30"]

1. d4 {[%emt 0:00:04]} d5 {[%emt 0:00:06]} 2. c4 {[%emt 0:00:14]} e6 {[%emt 0:00:17]} 3. Nf3 {[%emt 0:01:25]} a6 {[%emt 0:00:18]} 4. e3 {[%emt 0:08:42]} Nf6 {[%emt 0:02:04]} 5. Be2 {[%emt 0:04:41]} dxc4 {[%emt 0:01:36]} 6. Bxc4 {[%emt 0:00:11]} b5 {[%emt 0:00:20]} 7. Bb3 {[%emt 0:02:58]} Bb7 {[%emt 0:01:14]} 8. O-O {[%emt 0:01:04]} Nbd7 {[%emt 0:01:04]} 9. Qe2 {[%emt 0:03:39]} c5 {[%emt 0:10:06]} 10. Rd1 {[%emt 0:05:28]} Qc7 {[%emt 0:01:39]} 11. a3 {[%emt 0:17:08]} Be7 {[%emt 0:05:19]} 12. Nc3 {[%emt 0:03:49]} O-O {[%emt 0:04:54]} 13. Bd2 {[%emt 0:09:08]} c4 {[%emt 0:15:37]} 14. Bc2 {[%emt 0:00:54]} e5 {[%emt 0:01:01]} 15. dxe5 {[%emt 0:08:49]} Nxe5 {[%emt 0:00:31]} 16. e4 {[%emt 0:04:19]} Bd6 {[%emt 0:01:38]} 17. h3 {[%emt 0:04:18]} Rfe8 {[%emt 0:01:31]} 18. Bg5 {[%emt 0:06:24]} Nxf3+ {[%emt 0:01:57]} 19. Qxf3 {[%emt 0:02:00]} Be5 {[%emt 0:01:39]} 20. Bxf6 {[%emt 0:06:35]} Bxf6 {[%emt 0:00:16]} 21. Qf5 {[%emt 0:00:51]} Re5 {[%emt 0:06:49]} 22. Qd7 {[%emt 0:02:19]} Qc6 {[%emt 0:08:03]} 23. Qxc6 {[%emt 0:01:54]} Bxc6 {[%emt 0:00:05]} 24. f4 {[%emt 0:01:08]} Ree8 {[%emt 0:00:42]} 25. e5 {[%emt 0:00:09]} Be7 {[%emt 0:03:41]} 26. Be4 {[%emt 0:07:33]} Rac8 {[%emt 0:03:39]} 27. Kf2 {[%emt 0:02:15]} f6 {[%emt 0:02:26]} 28. Bd5+ {[%emt 0:04:36]} Bxd5 {[%emt 0:01:21]} 29. Rxd5 {[%emt 0:00:12]} fxe5 {[%emt 0:01:27]} 30. fxe5 {[%emt 0:01:28]} Rf8+ {[%emt 0:02:43]} 31. Ke2 {[%emt 0:00:51]} Rce8 {[%emt 0:01:35]} 32. Ne4 {[%emt 0:00:27]} Bf6 {[%emt 0:02:33]} 33. Nxf6+ {[%emt 0:00:47]} gxf6 {[%emt 0:00:01]} 34. Rad1 {[%emt 0:00:16]} fxe5 {[%emt 0:11:51]} 35. Rd6 {[%emt 0:00:08]} Re7 {[%emt 0:01:57]} 36. Rxa6 {[%emt 0:00:52]} Ref7 {[%emt 0:01:47]} 37. Ke3 {[%emt 0:00:39]} Rf2 {[%emt 0:00:30]} 38. Rd2 {[%emt 0:00:17]} Rxd2 {[%emt 0:00:39]} 39. Kxd2 {[%emt 0:00:03]} Rf2+ {[%emt 0:00:08]} 40. Kc1 {[%emt 0:00:13]} Rf1+ {[%emt 0:10:46]} 41. Kd2 {[%emt 0:51:14]} Rf2+ {[%emt 0:50:10]} 42. Kc1 {[%emt 0:00:05]} e4 {[%emt 0:04:30]} 43. Re6 {[%emt 0:00:00]} Re2 {[%emt 0:00:00]} 44. Re5 {[%emt 0:00:00]} e3 {[%emt 0:00:00]} 45. Rxb5 {[%emt 0:00:00]} Rxg2 {[%emt 0:00:00]} 46. Re5 {[%emt 0:00:00]} e2 {[%emt 0:00:00]} 47. Kd2 {[%emt 0:00:00]} e1=Q+ {[%emt 0:00:00]} 48. Kxe1 {[%emt 0:00:00]} Rxb2 {[%emt 0:00:00]} 49. Rc5 {[%emt 0:00:00]} 1/2-1/2

[Event "4NCL 2021-22"]
[Site "England"]
[Date "2022.02.12"]
[Round "3.37"]
[White "Ashton, Adam G"]
[Black "Dargan, Paul A G"]
[Result "1-0"]
[ECO "B01"]
[WhiteElo "2379"]
[BlackElo "2127"]
[Annotator "ChessBase"]
[PlyCount "85"]
[EventDate "2021.11.27"]
[EventType "team-tourn"]
[EventCountry "ENG"]
[SourceTitle "playchess.com"]
[Source "ChessBase"]
[SourceQuality "1"]
[TimeControl "40/6000+30:3000+30"]

1. e4 {[%emt 0:02:06]} d5 {[%emt 0:00:26]} 2. exd5 {[%emt 0:00:07]} Qxd5 {[%emt 0:00:07]} 3. Nf3 {[%emt 0:00:59]} Bg4 {[%emt 0:00:44]} 4. Be2 {[%emt 0:01:50]} Nc6 {[%emt 0:00:18]} 5. h3 {[%emt 0:02:16]} Bxf3 {[%emt 0:00:19]} 6. Bxf3 {[%emt 0:00:12]} Qe6+ {[%emt 0:00:15]} 7. Qe2 {[%emt 0:04:35]} Nd4 {[%emt 0:00:09]} 8. Qxe6 {[%emt 0:00:49]} Nxf3+ {[%emt 0:00:04]} 9. gxf3 {[%emt 0:00:14]} fxe6 {[%emt 0:00:05]} 10. d4 {[%emt 0:06:50]} g6 {[%emt 0:00:28]} 11. Nc3 {[%emt 0:03:26]} Nh6 {[%emt 0:00:59]} 12. Bf4 {[%emt 0:09:58]} Bg7 {[%emt 0:16:45]} 13. O-O-O {[%emt 0:17:51]} O-O {[%emt 0:10:12]} 14. Bxc7 {[%emt 0:02:02]} Rxf3 {[%emt 0:00:27]} 15. Ne4 {[%emt 0:12:22]} Nf5 {[%emt 0:02:20]} 16. Be5 {[%emt 0:01:36]} Nd6 {[%emt 0:06:18]} 17. Nxd6 {[%emt 0:07:46]} exd6 {[%emt 0:00:23]} 18. Bxd6 {[%emt 0:00:28]} Rd8 {[%emt 0:09:36]} 19. Bg3 {[%emt 0:03:23]} Rxd4 {[%emt 0:15:58]} 20. c3 {[%emt 0:02:13]} Rd5 {[%emt 0:00:29]} 21. Rhe1 {[%emt 0:04:06]} Kf7 {[%emt 0:00:28]} 22. Re4 {[%emt 0:02:19]} Bh6+ {[%emt 0:06:31]} 23. Kc2 {[%emt 0:00:29]} Rxd1 {[%emt 0:00:33]} 24. Kxd1 {[%emt 0:00:06]} Rd3+ {[%emt 0:00:16]} 25. Kc2 {[%emt 0:03:08]} Rd2+ {[%emt 0:00:48]} 26. Kb3 {[%emt 0:00:16]} Bg5 {[%emt 0:00:21]} 27. Rc4 {[%emt 0:03:57]} Rd7 {[%emt 0:02:21]} 28. a4 {[%emt 0:02:51]} h5 {[%emt 0:02:17]} 29. a5 {[%emt 0:05:25]} Bd8 {[%emt 0:02:03]} 30. Ka4 {[%emt 0:00:34]} g5 {[%emt 0:04:40]} 31. Bb8 {[%emt 0:02:25]} b5+ {[%emt 0:04:43]} 32. Kxb5 {[%emt 0:07:52]} Rb7+ {[%emt 0:00:42]} 33. Ka6 {[%emt 0:00:01]} Rxb8 {[%emt 0:00:07]} 34. b4 {[%emt 0:00:04]} Bf6 {[%emt 0:04:38]} 35. Kxa7 {[%emt 0:00:47]} Rd8 {[%emt 0:00:05]} 36. b5 {[%emt 0:01:00]} Rd7+ {[%emt 0:03:10]} 37. Ka6 {[%emt 0:00:32]} Rd3 {[%emt 0:00:43]} 38. b6 {[%emt 0:00:57]} Bxc3 {[%emt 0:10:17]} 39. Rc7+ {[%emt 0:00:28]} Kf6 {[%emt 0:04:13]} 40. b7 {[%emt 0:00:34]} Bxa5 {[%emt 0:00:09]} 41. Kxa5 {[%emt 0:16:04]} Rb3 {[%emt 0:00:15]} 42. Ka6 {[%emt 0:00:59]} Rxh3 {[%emt 0:03:05]} 43. Rc5 {[%emt 0:01:32]} 1-0

[Event "4NCL 2021-22"]
[Site "England"]
[Date "2022.02.12"]
[Round "3.40"]
[White "Moreby, Kurt"]
[Black "Palliser, Richard J D"]
[Result "0-1"]
[ECO "E94"]
[WhiteElo "1673"]
[BlackElo "2413"]
[Annotator "ChessBase"]
[PlyCount "72"]
[EventDate "2021.11.27"]
[EventType "team-tourn"]
[EventCountry "ENG"]
[SourceTitle "playchess.com"]
[Source "ChessBase"]
[SourceQuality "1"]
[TimeControl "40/6000+30:3000+30"]

1. d4 {[%emt 0:00:24]} Nf6 {[%emt 0:00:04]} 2. Nf3 {[%emt 0:00:34]} g6 {[%emt 0:00:04]} 3. c4 {[%emt 0:00:33]} Bg7 {[%emt 0:00:03]} 4. Nc3 {[%emt 0:00:17]} O-O {[%emt 0:00:06]} 5. e4 {[%emt 0:00:15]} d6 {[%emt 0:00:04]} 6. Be2 {[%emt 0:01:02]} Nbd7 {[%emt 0:00:10]} 7. O-O {[%emt 0:01:08]} e5 {[%emt 0:00:40]} 8. dxe5 {[%emt 0:03:35]} dxe5 {[%emt 0:00:07]} 9. b4 {[%emt 0:01:03]} Nh5 {[%emt 0:09:26]} 10. Qc2 {[%emt 0:12:40]} Nf4 {[%emt 0:00:40]} 11. Nd5 {[%emt 0:02:34]} Ne6 {[%emt 0:02:09]} 12. Bb2 {[%emt 0:01:28]} f5 {[%emt 0:10:03]} 13. exf5 {[%emt 0:09:59]} gxf5 {[%emt 0:00:24]} 14. Ne3 {[%emt 0:04:30]} e4 {[%emt 0:03:19]} 15. Bxg7 {[%emt 0:07:28]} exf3 {[%emt 0:18:33]} 16. Bxf8 {[%emt 0:00:54]} fxe2 {[%emt 0:06:25]} 17. Qxe2 {[%emt 0:02:06]} Qxf8 {[%emt 0:01:13]} 18. Nd5 {[%emt 0:07:18]} Nf6 {[%emt 0:08:37]} 19. Qe5 {[%emt 0:08:03]} Ng4 {[%emt 0:10:44]} 20. Qg3 {[%emt 0:01:43]} c6 {[%emt 0:04:04]} 21. f3 {[%emt 0:04:55]} cxd5 {[%emt 0:00:36]} 22. fxg4 {[%emt 0:00:16]} f4 {[%emt 0:00:13]} 23. Qc3 {[%emt 0:03:42]} d4 {[%emt 0:00:12]} 24. Qd2 {[%emt 0:00:42]} Qg7 {[%emt 0:06:53]} 25. h3 {[%emt 0:02:36]} Bd7 {[%emt 0:00:16]} 26. Rae1 {[%emt 0:02:35]} Rf8 {[%emt 0:04:29]} 27. Qd3 {[%emt 0:04:57]} h5 {[%emt 0:03:32]} 28. gxh5 {[%emt 0:06:40]} Rf6 {[%emt 0:09:52]} 29. g4 {[%emt 0:07:32]} Ng5 {[%emt 0:03:09]} 30. h4 {[%emt 0:01:51]} Bxg4 {[%emt 0:01:24]} 31. hxg5 {[%emt 0:00:42]} Qxg5 {[%emt 0:00:23]} 32. Re8+ {[%emt 0:06:47]} Kf7 {[%emt 0:00:04]} 33. Qh7+ {[%emt 0:01:01]} Kxe8 {[%emt 0:00:05]} 34. Re1+ {[%emt 0:00:14]} Be2+ {[%emt 0:00:16]} 35. Kf2 {[%emt 0:00:29]} Qg3+ {[%emt 0:00:22]} 36. Kxe2 {[%emt 0:00:12]} Re6+ {[%emt 0:00:01]} 0-1

[Event "4NCL 2021-22"]
[Site "England"]
[Date "2022.02.12"]
[Round "3.45"]
[White "Duncan, Chris R"]
[Black "Ethelontis, Alexandros N"]
[Result "1-0"]
[ECO "C40"]
[WhiteElo "2252"]
[BlackElo "2131"]
[Annotator "ChessBase"]
[PlyCount "87"]
[EventDate "2021.11.27"]
[EventType "team-tourn"]
[EventCountry "ENG"]
[SourceTitle "playchess.com"]
[Source "ChessBase"]
[SourceQuality "1"]
[TimeControl "40/6000+30:3000+30"]

1. Nf3 {[%emt 0:01:49]} f5 {[%emt 0:00:21]} 2. d3 {[%emt 0:00:26]} Nc6 {[%emt 0:00:57]} 3. e4 {[%emt 0:00:07]} e5 {[%emt 0:00:26]} 4. Nc3 {[%emt 0:01:45]} Bb4 {[%emt 0:00:51]} 5. a3 {[%emt 0:32:07]} Bxc3+ {[%emt 0:06:33]} 6. bxc3 {[%emt 0:00:02]} Nf6 {[%emt 0:01:40]} 7. exf5 {[%emt 0:00:52]} d5 {[%emt 0:08:54]} 8. Rb1 {[%emt 0:00:07]} O-O {[%emt 0:04:15]} 9. Be2 {[%emt 0:00:20]} Bxf5 {[%emt 0:18:04]} 10. Rxb7 {[%emt 0:00:32]} Qd6 {[%emt 0:08:12]} 11. O-O {[%emt 0:01:16]} h6 {[%emt 0:04:58]} 12. h3 {[%emt 0:02:52]} Nd7 {[%emt 0:08:33]} 13. Rb1 {[%emt 0:02:44]} Be6 {[%emt 0:11:20]} 14. Nh2 {[%emt 0:13:59]} Nf6 {[%emt 0:07:44]} 15. Ng4 {[%emt 0:02:27]} Nd7 {[%emt 0:04:24]} 16. Qd2 {[%emt 0:03:09]} Rf7 {[%emt 0:03:05]} 17. a4 {[%emt 0:04:22]} Nf6 {[%emt 0:02:19]} 18. Rb3 {[%emt 0:04:55]} Qd7 {[%emt 0:02:27]} 19. Qd1 {[%emt 0:06:50]} Rd8 {[%emt 0:10:39]} 20. Nxf6+ {[%emt 0:07:33]} Rxf6 {[%emt 0:00:08]} 21. Bg4 {[%emt 0:00:14]} Rdf8 {[%emt 0:01:10]} 22. Qe2 {[%emt 0:04:53]} Rg6 {[%emt 0:00:47]} 23. f3 {[%emt 0:02:12]} Rgf6 {[%emt 0:00:39]} 24. Rb7 {[%emt 0:04:07]} Qd6 {[%emt 0:01:00]} 25. Rb3 {[%emt 0:00:55]} Qd7 {[%emt 0:00:12]} 26. Ba3 {[%emt 0:01:03]} R8f7 {[%emt 0:00:27]} 27. Ra1 {[%emt 0:02:59]} g6 {[%emt 0:00:33]} 28. Re1 {[%emt 0:01:06]} Bf5 {[%emt 0:00:26]} 29. Bc1 {[%emt 0:00:42]} h5 {[%emt 0:01:17]} 30. Bxf5 {[%emt 0:00:23]} Rxf5 {[%emt 0:00:51]} 31. h4 {[%emt 0:01:50]} Nd8 {[%emt 0:00:46]} 32. Rb8 {[%emt 0:00:20]} Kg7 {[%emt 0:01:05]} 33. Qe3 {[%emt 0:00:07]} Nc6 {[%emt 0:01:11]} 34. Qh6+ {[%emt 0:00:27]} Kf6 {[%emt 0:00:04]} 35. Bg5+ {[%emt 0:00:31]} Ke6 {[%emt 0:00:09]} 36. Qxg6+ {[%emt 0:00:38]} R5f6 {[%emt 0:00:10]} 37. Bxf6 {[%emt 0:01:20]} Rxf6 {[%emt 0:00:30]} 38. Re8+ {[%emt 0:00:31]} Ne7 {[%emt 0:00:23]} 39. Qxh5 {[%emt 0:01:14]} Rf5 {[%emt 0:01:12]} 40. Qg6+ {[%emt 0:00:30]} Rf6 {[%emt 0:00:08]} 41. Qg4+ {[%emt 0:50:09]} Rf5 {[%emt 0:50:19]} 42. Rf8 {[%emt 0:01:17]} Kd6 {[%emt 0:01:30]} 43. Rxf5 {[%emt 0:00:27]} Nxf5 {[%emt 0:00:14]} 44. Qg6+ {[%emt 0:01:40]} 1-0

[Event "4NCL 2021-22"]
[Site "England"]
[Date "2022.02.12"]
[Round "3.46"]
[White "Pollack, Oscar"]
[Black "Webb, Laurence E"]
[Result "1/2-1/2"]
[ECO "D05"]
[WhiteElo "2140"]
[BlackElo "2256"]
[Annotator "ChessBase"]
[PlyCount "204"]
[EventDate "2021.11.27"]
[EventType "team-tourn"]
[EventCountry "ENG"]
[SourceTitle "playchess.com"]
[Source "ChessBase"]
[SourceQuality "1"]
[TimeControl "40/6000+30:3000+30"]

1. d4 {[%emt 0:02:59]} e6 {[%emt 0:00:59]} 2. Nf3 {[%emt 0:00:15]} Nf6 {[%emt 0:00:19]} 3. e3 {[%emt 0:00:03]} c5 {[%emt 0:00:41]} 4. b3 {[%emt 0:00:38]} d5 {[%emt 0:01:21]} 5. Bb2 {[%emt 0:00:06]} Nc6 {[%emt 0:01:12]} 6. Nbd2 {[%emt 0:00:57]} Bd6 {[%emt 0:02:23]} 7. dxc5 {[%emt 0:02:40]} Bxc5 {[%emt 0:00:18]} 8. Bd3 {[%emt 0:01:06]} O-O {[%emt 0:03:55]} 9. O-O {[%emt 0:02:02]} Bd7 {[%emt 0:16:11]} 10. a3 {[%emt 0:05:00]} Qe7 {[%emt 0:07:06]} 11. b4 {[%emt 0:03:14]} Bb6 {[%emt 0:01:50]} 12. c4 {[%emt 0:06:42]} Rad8 {[%emt 0:02:12]} 13. Qc2 {[%emt 0:03:02]} h6 {[%emt 0:02:40]} 14. Rfd1 {[%emt 0:06:27]} Bc8 {[%emt 0:03:43]} 15. cxd5 {[%emt 0:08:02]} exd5 {[%emt 0:09:23]} 16. b5 {[%emt 0:07:22]} Nb8 {[%emt 0:00:50]} 17. Nd4 {[%emt 0:00:51]} Be6 {[%emt 0:08:41]} 18. N2b3 {[%emt 0:05:17]} Rc8 {[%emt 0:02:00]} 19. Qe2 {[%emt 0:00:28]} Nbd7 {[%emt 0:00:44]} 20. a4 {[%emt 0:01:15]} Rfe8 {[%emt 0:04:55]} 21. Ba3 {[%emt 0:03:09]} Qd8 {[%emt 0:01:26]} 22. Nxe6 {[%emt 0:01:21]} Rxe6 {[%emt 0:01:28]} 23. a5 {[%emt 0:00:50]} Bc7 {[%emt 0:07:11]} 24. Nd4 {[%emt 0:03:17]} Re5 {[%emt 0:14:40]} 25. a6 {[%emt 0:00:43]} bxa6 {[%emt 0:00:19]} 26. Nc6 {[%emt 0:00:21]} Qe8 {[%emt 0:00:38]} 27. Nxe5 {[%emt 0:00:11]} Qxe5 {[%emt 0:01:30]} 28. g3 {[%emt 0:00:23]} axb5 {[%emt 0:01:53]} 29. Bb2 {[%emt 0:00:38]} Qd6 {[%emt 0:01:53]} 30. Rxa7 {[%emt 0:01:47]} Bb6 {[%emt 0:00:24]} 31. Raa1 {[%emt 0:00:18]} b4 {[%emt 0:01:24]} 32. Bf5 {[%emt 0:01:44]} Rd8 {[%emt 0:04:41]} 33. Qb5 {[%emt 0:00:43]} Qc5 {[%emt 0:02:37]} 34. Qd3 {[%emt 0:01:53]} Qd6 {[%emt 0:00:45]} 35. Rac1 {[%emt 0:00:39]} Ne5 {[%emt 0:01:33]} 36. Bxe5 {[%emt 0:00:38]} Qxe5 {[%emt 0:00:06]} 37. Rc6 {[%emt 0:00:15]} Rb8 {[%emt 0:00:38]} 38. Rdc1 {[%emt 0:00:05]} g5 {[%emt 0:01:50]} 39. Bh3 {[%emt 0:02:03]} Kg7 {[%emt 0:00:18]} 40. Qf5 {[%emt 0:01:22]} Qxf5 {[%emt 0:01:53]} 41. Bxf5 {[%emt 0:50:02]} d4 {[%emt 0:05:36]} 42. exd4 {[%emt 0:00:00]} Bxd4 {[%emt 0:01:23]} 43. Rc8 {[%emt 0:00:00]} Rb6 {[%emt 0:06:52]} 44. R1c4 {[%emt 0:00:00]} Bc3 {[%emt 0:02:24]} 45. R8c7 {[%emt 0:00:00]} Ne8 {[%emt 0:06:46]} 46. R7c6 {[%emt 0:00:00]} Rb7 {[%emt 0:03:21]} 47. Ra6 {[%emt 0:00:00]} Nf6 {[%emt 0:04:54]} 48. Rac6 {[%emt 0:00:00]} Rb8 {[%emt 0:07:50]} 49. Rc7 {[%emt 0:00:00]} Ne8 {[%emt 0:00:41]} 50. Rd7 {[%emt 0:00:00]} Nf6 {[%emt 0:00:10]} 51. Ra7 {[%emt 0:00:00]} Be5 {[%emt 0:05:42]} 52. Ra5 {[%emt 0:00:00]} Bd6 {[%emt 0:02:11]} 53. Ra6 {[%emt 0:00:00]} Be5 {[%emt 0:00:50]} 54. Rcc6 {[%emt 0:00:00]} Bd4 {[%emt 0:03:03]} 55. Rd6 {[%emt 0:00:00]} Bc5 {[%emt 0:00:51]} 56. Rxf6 {[%emt 0:00:00]} b3 {[%emt 0:00:31]} 57. Rfc6 {[%emt 0:00:00]} Bd4 {[%emt 0:00:36]} 58. Rc7 {[%emt 0:00:00]} b2 {[%emt 0:00:49]} 59. Rg6+ {[%emt 0:00:00]} Kf8 {[%emt 0:01:11]} 60. Rxh6 {[%emt 0:00:00]} b1=Q+ {[%emt 0:00:21]} 61. Bxb1 {[%emt 0:00:00]} Rxb1+ {[%emt 0:00:03]} 62. Kg2 {[%emt 0:00:00]} Rb2 {[%emt 0:00:36]} 63. Kh3 {[%emt 0:00:00]} Kg7 {[%emt 0:02:29]} 64. Rhc6 {[%emt 0:00:00]} Rxf2 {[%emt 0:00:33]} 65. Rc2 {[%emt 0:00:00]} Rf1 {[%emt 0:01:18]} 66. Rd2 {[%emt 0:00:00]} Be5 {[%emt 0:00:51]} 67. Rc5 {[%emt 0:00:06]} f6 {[%emt 0:00:34]} 68. Kg4 {[%emt 0:01:48]} Re1 {[%emt 0:00:57]} 69. Kh5 {[%emt 0:00:39]} Kf7 {[%emt 0:00:36]} 70. Rc6 {[%emt 0:01:29]} Ke7 {[%emt 0:00:53]} 71. Kg4 {[%emt 0:00:53]} Ra1 {[%emt 0:01:02]} 72. Rd3 {[%emt 0:00:29]} Ra2 {[%emt 0:00:13]} 73. h4 {[%emt 0:01:04]} gxh4 {[%emt 0:00:49]} 74. gxh4 {[%emt 0:00:01]} Rg2+ {[%emt 0:00:33]} 75. Kh5 {[%emt 0:01:03]} Rg8 {[%emt 0:00:15]} 76. Rb3 {[%emt 0:01:01]} Kd7 {[%emt 0:01:21]} 77. Ra6 {[%emt 0:00:11]} Rh8+ {[%emt 0:00:34]} 78. Kg4 {[%emt 0:01:18]} Kc7 {[%emt 0:00:09]} 79. Rh3 {[%emt 0:01:31]} Kd7 {[%emt 0:00:24]} 80. h5 {[%emt 0:00:15]} Rg8+ {[%emt 0:00:36]} 81. Kf5 {[%emt 0:00:31]} Rg5+ {[%emt 0:00:11]} 82. Ke4 {[%emt 0:00:02]} Rg4+ {[%emt 0:00:13]} 83. Kd5 {[%emt 0:00:34]} Rd4+ {[%emt 0:00:50]} 84. Kc5 {[%emt 0:00:01]} Ke7 {[%emt 0:00:46]} 85. h6 {[%emt 0:00:24]} Rd8 {[%emt 0:00:15]} 86. h7 {[%emt 0:00:28]} Rh8 {[%emt 0:00:52]} 87. Kd5 {[%emt 0:01:02]} Kf7 {[%emt 0:00:17]} 88. Ra7+ {[%emt 0:01:07]} Kg6 {[%emt 0:00:09]} 89. Rh1 {[%emt 0:00:21]} Bf4 {[%emt 0:00:17]} 90. Ke6 {[%emt 0:01:50]} Bg5 {[%emt 0:00:27]} 91. Re7 {[%emt 0:04:24]} Bf4 {[%emt 0:01:05]} 92. Kd5 {[%emt 0:01:06]} Bg5 {[%emt 0:00:19]} 93. Rc7 {[%emt 0:01:20]} Rd8+ {[%emt 0:00:37]} 94. Ke4 {[%emt 0:00:53]} Re8+ {[%emt 0:00:22]} 95. Kf3 {[%emt 0:00:27]} Rh8 {[%emt 0:00:24]} 96. Rh2 {[%emt 0:00:33]} Bh6 {[%emt 0:00:56]} 97. Kg4 {[%emt 0:03:16]} Rxh7 {[%emt 0:00:40]} 98. Rxh7 {[%emt 0:00:18]} Kxh7 {[%emt 0:00:02]} 99. Kf5 {[%emt 0:00:39]} Kg7 {[%emt 0:00:18]} 100. Ra2 {[%emt 0:00:22]} Bg5 {[%emt 0:00:46]} 101. Ra7+ {[%emt 0:00:04]} Kf8 {[%emt 0:00:30]} 102. Ke6 {[%emt 0:00:24]} Kg8 {[%emt 0:00:08]} 1/2-1/2

[Event "4NCL 2021-22"]
[Site "England"]
[Date "2022.02.12"]
[Round "3.47"]
[White "Ledger, Stephen C"]
[Black "Eden, Tomer"]
[Result "0-1"]
[ECO "D02"]
[WhiteElo "2171"]
[BlackElo "2135"]
[Annotator "ChessBase"]
[PlyCount "48"]
[EventDate "2021.11.27"]
[EventType "team-tourn"]
[EventCountry "ENG"]
[SourceTitle "playchess.com"]
[Source "ChessBase"]
[SourceQuality "1"]
[TimeControl "40/6000+30:3000+30"]

1. d4 {[%emt 0:00:06]} e6 {[%emt 0:00:08]} 2. Nf3 {[%emt 0:00:36]} d5 {[%emt 0:00:55]} 3. Bf4 {[%emt 0:00:57]} Nf6 {[%emt 0:00:26]} 4. e3 {[%emt 0:00:42]} c5 {[%emt 0:00:50]} 5. c3 {[%emt 0:00:51]} Nc6 {[%emt 0:00:11]} 6. Nbd2 {[%emt 0:01:02]} Nh5 {[%emt 0:02:17]} 7. Bg5 {[%emt 0:03:32]} f6 {[%emt 0:00:20]} 8. Bh4 {[%emt 0:01:41]} g6 {[%emt 0:00:19]} 9. g4 {[%emt 0:09:07]} Ng7 {[%emt 0:04:14]} 10. Bd3 {[%emt 0:05:30]} cxd4 {[%emt 0:04:43]} 11. exd4 {[%emt 0:01:57]} Be7 {[%emt 0:16:48]} 12. Qe2 {[%emt 0:05:56]} O-O {[%emt 0:03:46]} 13. Bg3 {[%emt 0:02:55]} e5 {[%emt 0:06:14]} 14. dxe5 {[%emt 0:04:28]} Bxg4 {[%emt 0:01:45]} 15. h3 {[%emt 0:01:37]} Bh5 {[%emt 0:01:49]} 16. Qe3 {[%emt 0:13:01]} fxe5 {[%emt 0:07:58]} 17. Nxe5 {[%emt 0:07:13]} Bg5 {[%emt 0:05:45]} 18. Qc5 {[%emt 0:15:11]} Nxe5 {[%emt 0:04:05]} 19. Bxe5 {[%emt 0:00:18]} Bxd2+ {[%emt 0:03:36]} 20. Kxd2 {[%emt 0:00:10]} Qg5+ {[%emt 0:00:10]} 21. f4 {[%emt 0:01:51]} Qg2+ {[%emt 0:00:42]} 22. Ke3 {[%emt 0:00:42]} Rxf4 {[%emt 0:02:35]} 23. Bxf4 {[%emt 0:02:10]} Re8+ {[%emt 0:00:21]} 24. Kd4 {[%emt 0:00:40]} Ne6+ {[%emt 0:01:10]} 0-1

[Event "4NCL 2021-22"]
[Site "England"]
[Date "2022.02.12"]
[Round "3.48"]
[White "Willmoth, Robert F"]
[Black "Varney, Zoe"]
[Result "0-1"]
[ECO "D11"]
[WhiteElo "2121"]
[BlackElo "2041"]
[Annotator "NA"]
[PlyCount "64"]
[EventDate "2021.11.27"]
[EventType "team-tourn"]
[EventCountry "ENG"]
[SourceTitle "playchess.com"]
[Source "ChessBase"]
[SourceQuality "1"]
[TimeControl "40/6000+30:3000+30"]

1. d4 {[%emt 0:00:02]} d5 {[%emt 0:00:05]} 2. Nf3 {[%emt 0:00:05]} Nf6 {[%emt 0:00:04]} 3. g3 {[%emt 0:00:04]} c6 {[%emt 0:00:10]} 4. Bg2 {[%emt 0:00:08]} Bf5 {[%emt 0:03:48]} 5. O-O {[%emt 0:00:37]} h6 {[%emt 0:01:23]} 6. b3 {[%emt 0:04:42]} Nbd7 {[%emt 0:03:02]} 7. Bb2 {[%emt 0:03:20]} e6 {[%emt 0:04:01]} 8. c4 {[%emt 0:00:14]} Bd6 {[%emt 0:02:47]} 9. Nc3 {[%emt 0:01:46]} O-O {[%emt 0:05:52]} 10. Nd2 {[%emt 0:01:46]} e5 {[%emt 0:10:44]} 11. cxd5 {[%emt 0:11:09]} exd4 {[%emt 0:04:36]} 12. Nce4 {[%emt 0:03:23]} Nxe4 {[%emt 0:08:19]} 13. Nxe4 {[%emt 0:00:11]} Bxe4 {[%emt 0:00:29]} 14. Bxe4 {[%emt 0:00:08]} c5 {[%emt 0:01:03]} 15. Bg2 {[%emt 0:08:04]} Qe7 {[%emt 0:04:47]} 16. Qd2 {[%emt 0:01:50]} f5 {[%emt 0:08:51]} 17. e3 {[%emt 0:11:56]} dxe3 {[%emt 0:05:26]} 18. Qxe3 {[%emt 0:05:17]} Qxe3 {[%emt 0:02:12]} 19. fxe3 {[%emt 0:00:03]} Rae8 {[%emt 0:02:10]} 20. Rae1 {[%emt 0:04:03]} Be5 {[%emt 0:17:03]} 21. Ba3 {[%emt 0:10:55]} Bc3 {[%emt 0:05:31]} 22. Re2 {[%emt 0:00:41]} Re5 {[%emt 0:02:55]} 23. Rc1 {[%emt 0:08:44]} Bd4 {[%emt 0:02:55]} 24. Kf2 {[%emt 0:01:48]} f4 {[%emt 0:05:09]} 25. exd4 {[%emt 0:19:22]} fxg3+ {[%emt 0:00:04]} 26. Kxg3 {[%emt 0:00:04]} Rxe2 {[%emt 0:02:23]} 27. dxc5 {[%emt 0:00:21]} Re3+ {[%emt 0:03:10]} 28. Kg4 {[%emt 0:03:20]} Ne5+ {[%emt 0:00:25]} 29. Kh4 {[%emt 0:02:32]} Rf4+ {[%emt 0:00:16]} 30. Kh5 {[%emt 0:00:08]} Nd3 {[%emt 0:02:00]} 31. h4 {[%emt 0:01:04]} Re5+ {[%emt 0:00:18]} 32. Kg6 {[%emt 0:00:06]} Rf6# {[%emt 0:00:09]} 0-1

[Event "4NCL 2021-22"]
[Site "England"]
[Date "2022.02.12"]
[Round "3.50"]
[White "Wall, Gavin"]
[Black "Brewer, Callum D"]
[Result "1/2-1/2"]
[ECO "B12"]
[WhiteElo "2312"]
[BlackElo "2147"]
[Annotator "ChessBase"]
[PlyCount "53"]
[EventDate "2021.11.27"]
[EventType "team-tourn"]
[EventCountry "ENG"]
[SourceTitle "playchess.com"]
[Source "ChessBase"]
[SourceQuality "1"]
[TimeControl "40/6000+30:3000+30"]

1. e4 {[%emt 0:00:03]} c6 {[%emt 0:02:45]} 2. d4 {[%emt 0:00:58]} d5 {[%emt 0:00:04]} 3. f3 {[%emt 0:00:35]} dxe4 {[%emt 0:00:15]} 4. fxe4 {[%emt 0:00:05]} e5 {[%emt 0:00:02]} 5. Nf3 {[%emt 0:00:07]} Bg4 {[%emt 0:00:16]} 6. Bc4 {[%emt 0:00:50]} Nd7 {[%emt 0:00:43]} 7. O-O {[%emt 0:00:16]} Ngf6 {[%emt 0:01:12]} 8. c3 {[%emt 0:01:19]} Bd6 {[%emt 0:00:26]} 9. Qb3 {[%emt 0:07:21]} O-O {[%emt 0:04:06]} 10. Qxb7 {[%emt 0:00:17]} Qe7 {[%emt 0:07:34]} 11. Qxc6 {[%emt 0:22:43]} exd4 {[%emt 0:19:07]} 12. cxd4 {[%emt 0:02:05]} Rac8 {[%emt 0:06:30]} 13. Qa6 {[%emt 0:00:12]} Nxe4 {[%emt 0:06:10]} 14. Nbd2 {[%emt 0:03:33]} Nb6 {[%emt 0:08:05]} 15. Bb3 {[%emt 0:24:57]} Rxc1 {[%emt 0:21:27]} 16. Raxc1 {[%emt 0:00:04]} Nxd2 {[%emt 0:00:12]} 17. Nxd2 {[%emt 0:00:09]} Be2 {[%emt 0:04:23]} 18. Qa5 {[%emt 0:08:49]} Qh4 {[%emt 0:16:49]} 19. Nf3 {[%emt 0:08:31]} Bxf3 {[%emt 0:00:17]} 20. Rxf3 {[%emt 0:00:04]} Bxh2+ {[%emt 0:04:16]} 21. Kf1 {[%emt 0:00:13]} Bg3 {[%emt 0:01:17]} 22. Rxg3 {[%emt 0:04:07]} Qf4+ {[%emt 0:00:40]} 23. Kg1 {[%emt 0:01:08]} Qxc1+ {[%emt 0:00:26]} 24. Kh2 {[%emt 0:00:05]} Qh6+ {[%emt 0:00:20]} 25. Kg1 {[%emt 0:01:50]} Qc1+ {[%emt 0:00:07]} 26. Kh2 {[%emt 0:00:05]} Qh6+ {[%emt 0:00:30]} 27. Kg1 {[%emt 0:00:03]} 1/2-1/2